bitfinex-derivatives/quotes_ETHF0:USTF0_20250627
["timestamp","ask_amount","ask_price","bid_price","bid_amount"]
[1750993403933,0.40945,2441.5,2441.3,0.671]
[1750993404127,1.14055,2441.5,2441.3,0.671]
[1750993404446,0.7136,2441.4,2441.3,0.671]
[1750993405123,0.7136,2441.4,2441.3,1.08047]
[1750993406224,0.7136,2441.4,2441.3,0.671]
[1750993406425,0.7136,2441.4,2441.3,1.08047]
[1750993406625,0.7311,2441.5,2441.3,1.08047]
[1750993406935,0.6715,2441.7,2441.4,0.40946]
[1750993407132,1.01300938,2441.6,2441.5,3.61724]
[1750993407818,1.01300938,2441.6,2441.5,3.2078]
[1750993408021,1.01300938,2441.6,2441.5,3.61724]
[1750993408834,1.09118,2441.9,2441.6,0.40942]
[1750993409037,1.01239808,2441.8,2441.6,2.46682]
[1750993409331,1.77398,2441.9,2441.6,2.46682]
[1750993409522,1.01222641,2441.8,2441.6,2.46682]
[1750993409724,0.40939,2441.8,2441.6,2.0574]
[1750993409920,1.012258,2441.7,2441.5,3.61723]
[1750993410125,0.4094,2441.8,2441.5,3.61723]
[1750993410328,1.0122619,2441.7,2441.5,3.61723]
[1750993410535,0.4094,2441.8,2441.6,0.40942]
[1750993410720,1.0122164,2441.7,2441.6,0.40942]
[1750993413823,1.4216264,2441.7,2441.5,28.4398]
[1750993414029,1.71173252,2441.6,2441.5,28.84924]
[1750993414523,1.71173252,2441.6,2441.5,28.83624]
[1750993415137,1.71173252,2441.6,2441.5,28.4208]
[1750993415338,1.71173252,2441.6,2441.5,28.83024]
[1750993416340,1.71160534,2441.6,2441.5,28.83024]
[1750993416938,1.71160534,2441.6,2441.5,3.61724]
[1750993417140,1.71160534,2441.6,2441.5,28.83724]
[1750993417742,0.6999,2441.6,2441.5,28.83724]
[1750993419638,0.6999,2441.6,2441.5,28.81724]
[1750993421939,0.6818,2441.9,2441.5,28.4078]
[1750993422245,1.69061705,2441.8,2441.7,0.40939]
[1750993422443,2.10000705,2441.8,2441.6,0.40941]
[1750993422643,1.01161705,2441.7,2441.6,0.40941]
[1750993424944,1.42102705,2441.7,2441.5,29.8333]
[1750993425150,0.40941,2441.7,2441.5,28.4078]
[1750993425351,1.0884,2441.8,2441.6,0.40941]
[1750993425654,1.01223459,2441.7,2441.6,0.40941]
[1750993430352,1.01223459,2441.7,2441.6,3.0658055]
[1750993430757,1.01223459,2441.7,2441.6,4.4810055]
[1750993430958,2.45925777,2442.3,2441.8,1.02345]
[1750993431255,0.6708,2442.3,2442.2,6.2735155]
[1750993431857,0.6708,2442.3,2442.2,6.9787155]
[1750993433059,2.45925777,2442.8,2442.2,3.913]
[1750993433352,0.6708,2442.7,2442.5,3.2078]
[1750993433561,0.6708,2442.7,2442.5,3.61706]
[1750993434559,1.08004,2442.7,2442.5,3.61706]
[1750993434750,0.40925,2442.6,2442.5,3.2078]
[1750993435758,1.81745,2442.6,2442.5,3.2078]
[1750993436457,0.40931,2442.3,2442.2,3.2078]
[1750993440662,0.40933,2442.2,2441.9,29.54306]
[1750993440864,0.7189,2442.2,2442.0,0.40935]
[1750993441063,0.7189,2442.2,2441.9,3.9307]
[1750993441262,0.7189,2442.2,2442.1,0.40934]
[1750993441460,0.40931,2442.3,2442.0,1.3641]
[1750993441664,0.40931,2442.3,2442.2,3.2078]
[1750993441874,0.40931,2442.3,2442.1,0.40933]
[1750993442179,0.40932,2442.2,2442.0,1.77345]
[1750993442379,1.08102,2442.2,2442.0,0.40935]
[1750993443882,0.6717,2442.2,2442.1,0.40934]
[1750993444578,1.1282,2442.4,2442.2,0.40932]
[1750993444780,1.1282,2442.4,2442.3,0.6915]
[1750993444975,2.13230335,2442.4,2442.3,0.6915]
[1750993445573,6.579,2442.6,2442.3,1.1008]
[1750993445574,0.40928,2442.5,2442.3,1.1008]
[1750993446075,0.29446674,2442.9,2442.8,0.40922]
[1750993446275,1.29835845,2442.9,2442.8,3.61702]
[1750993447782,1.29835845,2442.9,2442.8,4.98382]
[1750993449793,6.578,2443.4,2443.3,0.40914]
[1750993449983,7.5810038,2443.4,2443.3,0.40914]
[1750993450182,7.5810038,2443.4,2443.2,3.61694]
[1750993450383,1.0030038,2443.3,2443.2,3.61694]
[1750993451392,1.75038,2443.7,2443.2,3.2078]
[1750993451587,1.00231179,2443.6,2443.4,0.4091]
[1750993451791,1.75038,2443.7,2443.5,1.3514]
[1750993451988,1.00230854,2443.6,2443.5,1.3514]
[1750993452183,1.00230854,2443.6,2443.3,1.4195]
[1750993452398,0.40911,2443.5,2443.3,34.5719]
[1750993453192,0.40911,2443.5,2443.3,34.98104]
[1750993453392,0.40909,2443.6,2443.3,34.98104]
[1750993453585,0.4091,2443.5,2443.3,34.5719]
[1750993453788,0.40912,2443.4,2443.3,33.854]
[1750993454097,0.40912,2443.4,2442.6,1.02313]
[1750993454098,40.01648962,2443.4,2442.1,3.2379555]
[1750993454297,0.4093,2442.4,2441.9,4.5893555]
[1750993454484,0.4093,2442.4,2442.1,0.40934]
[1750993454795,3.2078,2442.4,2442.1,0.40934]
[1750993454996,3.6171,2442.4,2442.2,1.3381]
[1750993455198,3.2078,2442.4,2442.2,1.3381]
[1750993455393,3.61703,2442.8,2442.2,1.3381]
[1750993455594,1.41269728,2442.7,2442.4,0.40928]
[1750993455796,1.00345728,2442.6,2442.5,1.3381]
[1750993456297,1.00345728,2442.6,2442.5,1.74737]
[1750993456692,0.40924,2442.7,2442.5,1.3381]
[1750993456900,0.40925,2442.6,2442.5,1.3381]
[1750993457600,7.253,2442.9,2442.5,1.3381]
[1750993457601,0.40924,2442.7,2442.5,1.3381]
[1750993458599,0.40925,2442.7,2442.5,1.3381]
[1750993459299,0.40928,2442.5,2442.2,0.40931]
[1750993459496,0.40926,2442.6,2442.3,1.8423]
[1750993459793,0.40929,2442.4,2442.2,31.914]
[1750993460000,5.01968962,2442.4,2441.7,3.2078]
[1750993460192,0.40938,2441.9,2441.6,34.45191]
[1750993460388,3.2078,2442.0,2441.4,3.2078]
[1750993460389,0.40943,2441.6,2441.4,3.2078]
[1750993460697,0.40942,2441.6,2441.4,4.6408]
[1750993461101,0.40941,2441.7,2441.4,5.05025]
[1750993461402,3.2078,2442.0,2441.5,0.40944]
[1750993461403,0.4094,2441.8,2441.5,0.40944]
[1750993461592,0.4094,2441.8,2441.5,1.82354]
[1750993461793,0.40941,2441.7,2441.5,1.4141]
[1750993462086,4.5532,2442.0,2441.5,1.82354]
[1750993462087,0.4094,2441.8,2441.5,1.82354]
[1750993462493,0.40941,2441.7,2441.5,1.82354]
[1750993463401,0.40942,2441.6,2441.5,1.4141]
[1750993463899,4.5532,2442.0,2441.4,3.2078]
[1750993464099,0.40944,2441.5,2441.4,3.2078]
[1750993464498,9.7868,2441.6,2441.0,3.2078]
[1750993464797,0.4095,2441.2,2440.9,0.40953]
[1750993464995,3.2078,2441.3,2441.0,1.3721]
[1750993465201,0.40949,2441.2,2441.0,1.3721]
[1750993465399,3.2078,2441.3,2441.0,1.78162]
[1750993465599,3.61728,2441.3,2441.0,1.78162]
[1750993465896,0.40951,2441.1,2440.6,35.1218]
[1750993466209,0.40949,2441.2,2441.0,0.40952]
[1750993466596,0.40949,2441.2,2440.9,0.40953]
[1750993467098,0.40949,2441.2,2440.7,1.3721]
[1750993467292,0.40952,2441.0,2440.8,0.40955]
[1750993467492,3.9279,2441.3,2440.7,7.9511]
[1750993467693,0.40953,2441.0,2440.7,1.78167]
[1750993467995,1.3968,2441.2,2440.6,3.2078]
[1750993468189,7.9758,2441.2,2440.6,3.61738]
[1750993468396,7.9758,2441.2,2440.6,3.2078]
[1750993468592,3.2078,2440.9,2440.4,6.579]
[1750993468801,0.40957,2440.7,2440.5,0.4096]
[1750993469002,0.40959,2440.6,2440.4,1.72892]
[1750993469497,0.40958,2440.7,2440.4,1.72892]
[1750993469800,0.40958,2440.7,2440.5,0.4096]
[1750993470094,3.61735,2440.9,2440.5,0.4096]
[1750993470300,3.2078,2440.9,2440.5,0.40959]
[1750993470502,3.61734,2440.9,2440.5,0.40959]
[1750993470689,3.61734,2440.9,2440.5,0.4096]
[1750993470893,3.2078,2440.9,2440.4,1.3193]
[1750993471203,3.61734,2440.9,2440.5,0.40959]
[1750993471503,3.2078,2440.9,2440.6,0.40959]
[1750993471704,3.61735,2440.9,2440.5,0.40959]
[1750993472205,3.2078,2440.9,2440.6,0.40958]
[1750993472500,3.61734,2440.9,2440.6,0.40958]
[1750993472706,3.61734,2440.9,2440.5,0.4096]
[1750993473407,3.2078,2440.9,2440.6,0.40959]
[1750993474011,3.61734,2440.9,2440.6,0.40959]
[1750993474204,3.61734,2440.9,2440.5,0.40959]
[1750993474405,3.61734,2440.9,2440.5,0.40961]
[1750993474908,3.2078,2440.7,2440.6,0.40959]
[1750993475604,3.2078,2441.0,2440.7,0.40956]
[1750993476709,3.2078,2441.0,2440.8,0.40955]
[1750993477307,3.2078,2441.0,2440.6,1.4356]
[1750993478203,3.2078,2441.0,2440.9,0.40954]
[1750993478401,3.2078,2441.0,2440.6,1.4356]
[1750993478402,3.61733,2441.0,2440.7,0.40957]
[1750993478806,3.2078,2441.0,2440.7,0.40957]
[1750993479309,3.2078,2441.0,2440.8,0.40955]
[1750993479509,3.2078,2441.0,2440.7,0.40956]
[1750993480010,3.2078,2441.0,2440.6,1.4356]
[1750993480210,3.2078,2441.0,2440.9,0.40954]
[1750993484509,1.12957,2441.3,2440.9,0.40954]
[1750993484709,3.2078,2441.2,2440.9,0.40954]
[1750993484912,3.2078,2441.2,2441.0,0.40952]
[1750993485209,3.61729,2441.2,2440.9,0.40953]
[1750993485413,0.40953,2441.0,2440.8,25.287]
[1750993485616,1.78962,2441.1,2440.8,25.69655]
[1750993486516,1.78961,2441.1,2440.8,25.69654]
[1750993487713,3.2078,2440.9,2440.5,0.7128]
[1750993487907,1.3893,2440.8,2440.5,0.7128]
[1750993488109,1.79887,2440.8,2440.5,25.277]
[1750993488318,1.79886,2440.8,2440.3,50.6698]
[1750993488617,1.79886,2440.8,2440.5,0.4096]
[1750993490420,1.3893,2440.8,2440.6,0.40958]
[1750993490718,1.79886,2440.8,2440.5,0.4096]
[1750993490911,1.3893,2440.8,2440.6,0.40959]
[1750993491110,1.3893,2440.8,2440.7,0.40957]
[1750993491311,3.6173,2441.2,2440.9,0.40954]
[1750993491516,1.71219966,2441.1,2440.8,0.40954]
[1750993491717,1.00339966,2441.0,2440.9,0.40954]
[1750993493319,1.00339966,2441.0,2440.6,40.8]
[1750993493616,1.00339966,2440.9,2440.7,25.269]
[1750993493820,1.41293966,2440.9,2440.7,25.269]
[1750993494022,0.671,2440.8,2440.7,25.269]
[1750993494220,1.67657271,2440.8,2440.7,25.269]
[1750993494725,1.67657271,2440.8,2440.7,25.67857]
[1750993494921,1.67657271,2440.8,2440.7,0.40957]
[1750993496024,1.67657271,2440.8,2440.6,25.67958]
[1750993496219,0.671,2440.8,2440.6,25.67958]
[1750993496526,0.671,2440.8,2440.7,0.40957]
[1750993496823,1.67691316,2440.8,2440.7,0.40957]
[1750993497526,1.67691316,2440.8,2440.6,25.67958]
[1750993497823,0.671,2440.8,2440.6,25.67958]
[1750993498738,0.671,2440.8,2440.7,0.40957]
[1750993498931,1.67699399,2440.8,2440.7,0.40957]
[1750993500837,2.08654399,2440.8,2440.7,25.239]
[1750993501340,3.44554399,2440.8,2440.7,25.239]
[1750993503940,3.03599399,2440.8,2440.7,25.239]
[1750993504242,1.67699399,2440.8,2440.7,25.239]
[1750993504544,2.08654399,2440.8,2440.7,25.239]
[1750993505042,2.08654399,2440.8,2440.5,32.23659]
[1750993505237,1.00599399,2440.7,2440.6,0.40959]
[1750993506941,1.00599399,2440.7,2440.5,25.6236]
[1750993507545,1.41556399,2440.7,2440.5,25.6236]
[1750993507844,1.41558399,2440.6,2440.5,25.214]
[1750993508147,1.41559399,2440.6,2440.5,25.211]
[1750993509443,1.41559399,2440.6,2440.3,3.61743]
[1750993509637,2.10381399,2440.5,2440.3,3.2078]
[1750993509833,1.09782,2440.5,2440.3,3.2078]
[1750993510030,0.6738,2440.4,2440.1,0.3325068]
[1750993510240,0.6738,2440.4,2440.2,0.40964]
[1750993510441,0.6738,2440.4,2440.3,0.40964]
[1750993511248,1.08342,2440.4,2440.1,0.33052461]
[1750993511441,0.6738,2440.4,2440.1,25.201]
[1750993511746,6.597,2440.8,2440.1,25.201]
[1750993512042,1.00599423,2440.7,2440.6,0.40959]
[1750993512941,1.00599423,2440.7,2440.4,25.61461]
[1750993513142,1.00599423,2440.6,2440.4,25.61461]
[1750993513341,0.7228,2440.5,2440.4,25.61461]
[1750993513540,1.3968,2440.5,2440.4,25.61461]
[1750993513747,1.3968,2440.5,2440.4,0.40961]
[1750993513946,2.40321094,2440.5,2440.4,0.40961]
[1750993514844,2.40321094,2440.5,2440.3,0.40963]
[1750993515047,1.3968,2440.5,2440.3,0.40963]
[1750993515440,1.3968,2440.5,2440.4,0.40962]
[1750993515647,2.40327074,2440.5,2440.4,0.40962]
[1750993516750,3.2078,2440.8,2440.2,31.59521]
[1750993517046,1.00258534,2440.7,2440.6,0.40959]
[1750993520645,10.21429,2441.2,2440.9,0.40952]
[1750993520850,3.2078,2441.2,2441.0,0.40951]
[1750993521236,3.61729,2441.2,2440.9,0.40953]
[1750993521643,3.2078,2441.2,2441.0,0.40952]
[1750993523951,3.2078,2441.2,2441.1,0.4095]
[1750993527048,1.3517,2441.3,2441.2,0.40949]
[1750993527247,1.3517,2441.3,2441.1,1.09429]
[1750993527853,6.597,2441.5,2441.3,0.40946]
[1750993528151,4.5881,2441.6,2441.3,2.65754708]
[1750993528345,4.5881,2441.6,2441.5,0.40944]
[1750993528540,4.5881,2441.6,2441.4,1.3739]
[1750993528541,4.5881,2441.6,2441.4,1.78334]
[1750993528744,4.5881,2441.6,2441.4,1.3739]
[1750993528948,0.40944,2441.5,2441.4,1.3739]
[1750993529146,0.40944,2441.5,2441.1,3.34234708]
[1750993529347,4.99753,2441.6,2441.3,0.40946]
[1750993530655,0.40944,2441.5,2441.3,0.40946]
[1750993530955,0.40944,2441.5,2441.2,1.3739]
[1750993531156,0.40946,2441.4,2441.2,1.78338]
[1750993531457,0.40946,2441.4,2441.1,1.0943]
[1750993531759,0.40945,2441.5,2441.2,0.40948]
[1750993532555,3.2078,2441.3,2441.0,0.40951]
[1750993532752,0.4095,2441.2,2440.9,3.2078]
[1750993532956,3.36424708,2441.2,2440.9,3.2078]
[1750993533258,0.40956,2440.8,2440.5,1.0902]
[1750993533456,0.7067,2440.7,2440.5,0.4096]
[1750993533655,3.9145,2440.7,2440.4,0.40961]
[1750993533953,3.9145,2440.7,2440.5,0.4096]
[1750993534160,3.9145,2440.7,2440.4,0.40961]
[1750993534761,3.9145,2440.7,2440.5,0.4096]
[1750993536761,3.9145,2440.7,2440.6,0.40959]
[1750993537564,3.9145,2440.7,2440.5,0.40959]
[1750993538861,4.32407,2440.7,2440.4,0.40961]
[1750993539257,4.32407,2440.7,2440.2,9.7618]
[1750993539258,3.9145,2440.7,2440.2,9.7618]
[1750993539559,3.9145,2440.7,2440.5,0.4096]
[1750993540061,0.6923,2440.6,2440.5,0.4096]
[1750993550061,0.6923,2440.6,2440.4,0.40961]
[1750993550768,0.6923,2440.6,2440.2,3.2078]
[1750993551069,0.40961,2440.5,2440.2,3.2078]
[1750993551460,1.85231,2440.5,2440.2,3.61744]
[1750993551768,1.85231,2440.5,2440.2,0.40964]
[1750993551769,1.8523,2440.5,2440.2,0.40964]
[1750993552267,1.8523,2440.5,2440.3,0.40964]
[1750993552874,1.4427,2440.5,2440.4,0.40962]
[1750993553063,7.2473,2440.6,2440.4,0.40962]
[1750993553370,7.2473,2440.6,2440.4,0.40961]
[1750993553764,7.65689,2440.6,2440.4,0.40961]
[1750993554468,7.65689,2440.6,2440.3,0.40963]
[1750993554668,9.07079,2440.6,2440.3,0.40963]
[1750993554869,0.4096,2440.5,2440.3,0.40963]
[1750993555071,0.4096,2440.5,2440.2,0.40964]
[1750993555261,1.8235,2440.5,2440.2,0.40964]
[1750993555866,1.8235,2440.5,2440.3,0.40964]
[1750993556070,1.4139,2440.5,2440.3,0.40964]
[1750993556368,1.82351,2440.5,2440.3,0.40964]
[1750993557872,0.40961,2440.5,2440.3,0.40964]
[1750993558769,10.31657007,2440.6,2440.3,0.40964]
[1750993558968,11.74297007,2440.6,2440.3,0.40964]
[1750993559475,0.40961,2440.5,2440.3,0.40964]
[1750993559868,0.40961,2440.5,2440.2,0.40964]
[1750993560171,10.31657007,2440.6,2440.3,0.40964]
[1750993560367,1.40480127,2440.5,2440.3,0.40964]
[1750993560572,0.4096,2440.5,2440.2,0.40965]
[1750993560971,11.74297007,2440.6,2440.3,0.40963]
[1750993561175,0.99553158,2440.5,2440.3,0.40963]
[1750993561377,0.40961,2440.5,2440.2,0.40965]
[1750993562473,7.65689,2440.6,2440.3,0.40964]
[1750993562778,0.99646581,2440.5,2440.3,1.85204]
[1750993562982,0.40961,2440.5,2440.3,1.4424]
[1750993563175,7.6569,2440.6,2440.3,1.85204]
[1750993563375,0.99652538,2440.5,2440.3,1.85204]
[1750993563580,0.40961,2440.5,2440.3,1.85204]
[1750993563878,0.40961,2440.5,2440.3,1.4424]
[1750993564077,7.6569,2440.6,2440.3,1.85204]
[1750993564278,0.9968618,2440.5,2440.3,1.85204]
[1750993564479,7.6569,2440.6,2440.3,1.85204]
[1750993564675,0.99689873,2440.5,2440.3,1.4424]
[1750993564878,7.6569,2440.6,2440.4,0.40962]
[1750993565078,0.9968987,2440.5,2440.3,1.85203]
[1750993565276,7.6569,2440.6,2440.3,1.85203]
[1750993565476,0.99695824,2440.5,2440.3,1.85203]
[1750993565677,7.6179,2440.6,2440.3,1.85203]
[1750993565877,0.99694296,2440.5,2440.3,1.85203]
[1750993566081,7.6179,2440.6,2440.3,1.85203]
[1750993566280,0.99693656,2440.5,2440.3,1.85203]
[1750993566580,0.40961,2440.5,2440.3,1.85203]
[1750993566778,7.6179,2440.6,2440.3,1.85203]
[1750993566984,0.99701477,2440.5,2440.3,1.85203]
[1750993567184,7.6179,2440.6,2440.3,1.85203]
[1750993567386,0.99702497,2440.5,2440.3,1.85203]
[1750993567581,0.40961,2440.5,2440.3,1.4424]
[1750993568085,7.6179,2440.6,2440.3,1.4424]
[1750993568281,0.99714914,2440.5,2440.3,1.85203]
[1750993568480,7.6179,2440.6,2440.3,1.85203]
[1750993568685,0.99717211,2440.5,2440.3,1.85203]
[1750993568886,7.6179,2440.6,2440.3,1.4424]
[1750993569089,0.99717214,2440.5,2440.3,1.4424]
[1750993569284,7.6179,2440.6,2440.3,1.4424]
[1750993569591,0.99710721,2440.5,2440.3,1.4424]
[1750993569792,7.6179,2440.6,2440.3,1.85203]
[1750993570090,0.99714737,2440.5,2440.4,3.06929007]
[1750993570291,3.2078,2441.0,2440.4,2.65967007]
[1750993570493,3.2078,2441.0,2440.2,11.43222]
[1750993570494,0.99715061,2440.9,2440.7,3.06922007]
[1750993570785,3.2078,2441.0,2440.8,0.6595]
[1750993570991,0.99706357,2440.9,2440.8,0.6595]
[1750993572586,1.40660357,2440.9,2440.8,0.6595]
[1750993572781,0.40956,2440.8,2440.5,12.79306007]
[1750993572988,0.40955,2440.9,2440.6,0.40959]
[1750993573186,0.99662457,2440.8,2440.5,12.79306007]
[1750993573386,0.40955,2440.9,2440.5,12.79306007]
[1750993573593,0.99624994,2440.8,2440.5,12.79306007]
[1750993573785,0.40955,2440.8,2440.5,12.79306007]
[1750993574596,0.40955,2440.9,2440.5,12.79306007]
[1750993574895,0.99615949,2440.8,2440.5,12.79306007]
[1750993575187,0.40956,2440.8,2440.5,12.38347007]
[1750993575393,0.40956,2440.8,2440.5,12.79307007]
[1750993575589,0.40956,2440.8,2440.5,6.27707007]
[1750993575794,0.40956,2440.8,2440.5,5.86747007]
[1750993576022,3.61734,2441.0,2440.6,0.40958]
[1750993576189,1.40561822,2440.9,2440.6,0.40958]
[1750993576386,0.99607822,2440.8,2440.6,0.40958]
[1750993576588,0.40954,2440.9,2440.5,6.27706007]
[1750993576783,0.9949493,2440.8,2440.5,6.27706007]
[1750993576990,0.40954,2440.9,2440.6,0.40959]
[1750993577293,0.99494163,2440.8,2440.6,0.40958]
[1750993577492,3.61733,2441.0,2440.6,0.40958]
[1750993577693,0.99487273,2440.9,2440.6,0.40958]
[1750993577992,0.99487273,2440.8,2440.6,0.40958]
[1750993578192,3.61733,2441.0,2440.6,0.40958]
[1750993578391,0.99478463,2440.9,2440.6,0.40958]
[1750993578595,0.99478463,2440.8,2440.6,0.40958]
[1750993578798,3.61733,2441.0,2440.6,0.40958]
[1750993578996,0.99475472,2440.9,2440.7,0.40957]
[1750993579298,0.99475472,2440.8,2440.7,0.40957]
[1750993581498,3.61732,2441.0,2440.7,0.40957]
[1750993581690,0.99458137,2440.9,2440.7,0.40957]
[1750993581891,3.61732,2441.0,2440.7,0.40957]
[1750993582100,0.99458139,2440.9,2440.7,0.40957]
[1750993582299,3.61732,2441.0,2440.7,0.40957]
[1750993582495,0.40959,2440.6,2440.3,41.20963]
[1750993582694,3.61738,2440.7,2440.4,0.40962]
[1750993582894,4.5611,2440.7,2440.4,0.40962]
[1750993583599,0.40959,2440.6,2440.3,1.13152]
[1750993583799,4.97068,2440.7,2440.4,0.40962]
[1750993583999,0.40959,2440.6,2440.3,1.13153]
[1750993584303,0.40961,2440.5,2440.2,0.40965]
[1750993584505,4.44576007,2440.6,2440.3,0.40964]
[1750993584802,4.44576007,2440.6,2440.2,0.40965]
[1750993585202,1.78609,2440.6,2440.3,0.40964]
[1750993585594,1.3765,2440.6,2440.2,0.40965]
[1750993585796,1.7861,2440.6,2440.3,0.40964]
[1750993590307,0.99498187,2440.5,2440.3,0.40964]
[1750993590606,1.7861,2440.6,2440.3,0.40964]
[1750993590805,0.99498192,2440.5,2440.3,0.40964]
[1750993591010,1.7861,2440.6,2440.3,0.40964]
[1750993591305,0.99498192,2440.5,2440.3,0.40964]
[1750993591510,1.7861,2440.6,2440.3,0.40964]
[1750993591705,0.99501381,2440.5,2440.3,0.40964]
[1750993591900,1.7861,2440.6,2440.3,0.40964]
[1750993592097,4.5611,2440.7,2440.3,2.65967007]
[1750993592298,0.6843,2440.7,2440.6,0.40959]
[1750993592524,6.514,2440.9,2440.8,0.40955]
[1750993592701,0.99489276,2440.9,2440.8,0.40955]
[1750993592905,0.6751,2441.1,2441.0,0.40952]
[1750993593103,0.6751,2441.1,2441.0,3.06919007]
[1750993598204,0.6994,2441.3,2441.1,0.40949]
[1750993598506,0.99336813,2441.2,2441.1,0.40949]
[1750993598705,0.6994,2441.3,2441.1,0.40949]
[1750993599309,0.6964,2441.5,2441.3,0.40947]
[1750993599512,0.99324349,2441.4,2441.2,0.40948]
[1750993599707,1.80254,2441.5,2441.2,0.40948]
[1750993600010,0.99326416,2441.4,2441.2,0.40948]
[1750993600208,1.3931,2441.5,2441.2,0.40948]
[1750993600511,0.99314658,2441.4,2441.2,0.40948]
[1750993600712,1.80254,2441.5,2441.2,0.40948]
[1750993601010,0.99315033,2441.4,2441.2,0.40948]
[1750993601211,1.80254,2441.5,2441.2,0.40948]
[1750993601414,0.99299521,2441.4,2441.2,0.40948]
[1750993601710,1.3931,2441.5,2441.2,0.40948]
[1750993601902,0.99299521,2441.4,2441.2,0.40948]
[1750993602102,1.3931,2441.5,2441.2,0.40948]
[1750993602410,0.99285395,2441.4,2441.2,0.40948]
[1750993602712,1.3931,2441.5,2441.3,0.40947]
[1750993602910,0.99285397,2441.4,2441.2,0.40948]
[1750993603112,1.3931,2441.5,2441.2,0.40948]
[1750993603312,0.99273068,2441.4,2441.2,0.40948]
[1750993603506,4.46221007,2441.5,2441.2,0.40948]
[1750993603809,0.99247664,2441.4,2441.2,0.40948]
[1750993604012,4.46221007,2441.5,2441.2,0.40948]
[1750993604309,4.46221007,2441.5,2441.1,1.4215]
[1750993604310,0.99248046,2441.4,2441.3,0.40947]
[1750993604911,0.99248046,2441.4,2441.2,0.40948]
[1750993605107,4.46221007,2441.5,2441.2,0.40948]
[1750993605312,0.99227533,2441.4,2441.2,0.40948]
[1750993605513,4.05277007,2441.5,2441.2,0.40948]
[1750993605814,0.99227535,2441.4,2441.2,0.40948]
[1750993606013,4.05277007,2441.5,2441.2,0.40948]
[1750993606310,0.99229032,2441.4,2441.2,0.40948]
[1750993606508,4.05277007,2441.5,2441.2,0.40948]
[1750993606710,0.99436443,2441.4,2441.2,0.40948]
[1750993606910,4.46222007,2441.5,2441.2,0.40948]
[1750993607109,0.9943644,2441.4,2441.2,0.40948]
[1750993607310,4.46222007,2441.5,2441.2,0.40948]
[1750993607513,0.99429546,2441.4,2441.2,0.40948]
[1750993607814,4.05277007,2441.5,2441.1,1.83099]
[1750993607815,4.46221007,2441.5,2441.1,1.83099]
[1750993608010,0.99429546,2441.4,2441.1,1.83099]
[1750993608206,4.46221007,2441.5,2441.1,1.83099]
[1750993608416,0.99418159,2441.4,2441.2,0.40948]
[1750993608609,4.46221007,2441.5,2441.2,0.40948]
[1750993608914,0.99418164,2441.4,2441.2,0.40948]
[1750993609114,7.67001007,2441.5,2441.2,0.40948]
[1750993609412,0.99413217,2441.4,2441.2,0.40948]
[1750993609613,7.67001007,2441.5,2441.2,0.40948]
[1750993610506,7.26057007,2441.5,2441.3,0.40947]
[1750993611011,4.6009,2441.5,2441.3,0.40947]
[1750993611717,1.3931,2441.5,2441.4,0.40945]
[1750993611902,1.3931,2441.5,2441.4,1.76885]
[1750993612710,1.3931,2441.5,2441.3,0.40946]
[1750993612910,4.6009,2441.5,2441.2,0.7082]
[1750993613110,5.01034,2441.5,2441.2,1.11768]
[1750993613515,4.6009,2441.5,2441.2,1.11768]
[1750993613716,5.01034,2441.5,2441.2,1.80438]
[1750993614517,5.01034,2441.5,2441.2,1.3949]
[1750993614718,0.40946,2441.4,2441.1,0.40949]
[1750993615223,5.01035,2441.5,2441.2,0.40948]
[1750993615818,4.6009,2441.5,2441.3,0.40947]
[1750993616621,5.01034,2441.5,2441.2,0.40948]
[1750993618313,7.26057007,2441.5,2441.0,0.7264]
[1750993618521,5.86747007,2441.1,2440.8,0.40954]
[1750993618720,1.3738,2441.0,2440.8,0.40954]
[1750993618910,1.3738,2441.0,2440.9,0.40954]
[1750993620620,1.3738,2441.0,2440.8,0.40954]
[1750993620820,0.99550327,2440.9,2440.5,3.2078]
[1750993621123,0.99550327,2440.9,2440.3,6.92163]
[1750993621124,5.86747007,2440.7,2440.3,6.92163]
[1750993621323,0.6731,2440.6,2440.4,0.40962]
[1750993621524,0.7267,2440.5,2440.4,0.40962]
[1750993622621,0.7267,2440.5,2440.3,0.40963]
[1750993623022,3.38637007,2440.5,2440.2,0.40965]
[1750993623322,4.75597007,2440.5,2440.2,0.40965]
[1750993623520,2.0963,2440.5,2440.2,0.40965]
[1750993623825,1.3696,2440.4,2440.3,0.40964]
[1750993624217,0.7267,2440.5,2440.3,0.40964]
[1750993624522,0.7267,2440.5,2440.4,0.40962]
[1750993624724,0.7267,2440.5,2440.3,0.40963]
[1750993624922,0.7267,2440.5,2440.4,0.40962]
[1750993625927,0.6731,2440.6,2440.5,0.4096]
[1750993626622,0.6731,2440.6,2440.5,1.7893]
[1750993628224,0.6731,2440.6,2440.5,0.4096]
[1750993628930,0.6731,2440.6,2440.4,0.40961]
[1750993629233,0.6731,2440.6,2440.2,1.3797]
[1750993629422,0.6731,2440.6,2440.2,4.03937007]
[1750993629625,0.6731,2440.6,2440.5,0.4096]
[1750993631020,0.6731,2440.6,2440.5,1.8226]
[1750993631225,0.7204,2440.9,2440.5,1.413]
[1750993631425,0.7204,2440.9,2440.8,3.06922007]
[1750993636434,0.7204,2440.9,2440.8,0.40955]
[1750993637339,0.7204,2440.9,2440.8,1.87095]
[1750993638140,3.8997,2441.0,2440.9,0.40954]
[1750993638440,3.2078,2441.3,2441.2,0.40947]
[1750993638736,4.20021441,2441.3,2441.2,0.40947]
[1750993639740,4.20021441,2441.3,2441.0,0.40952]
[1750993639940,0.99241441,2441.2,2441.1,0.4095]
[1750993640745,0.99241441,2441.2,2441.0,0.40951]